fUSD/lending_fUSD_20250630
["ID","MTS","AMOUNT","RATE_DAILY","PERIOD"]
[368630027,1751251864599,-490.0,0.0001863,2]
[368630028,1751251864610,-636.59,0.0001863,2]
[368630029,1751251864620,-3318.31,0.0001863,2]
[368630030,1751251864630,-1491.42,0.0001863,2]
[368630031,1751251864640,-490.0,0.0001863,2]
[368630032,1751251864649,-1467.24,0.0001863,2]
[368630033,1751251864661,-525.71,0.0001863,2]
[368630034,1751251864670,-490.0,0.0001863,2]
[368630035,1751251864680,-490.0,0.0001863,2]
[368630036,1751251864689,-490.0,0.0001863,2]
[368630037,1751251864699,-1225.11,0.0001863,2]
[368630038,1751251864709,-1086.29,0.0001863,2]
[368630039,1751251864718,-490.0,0.0001863,2]
[368630040,1751251864728,-490.0,0.0001863,2]
[368630041,1751251864738,-490.0,0.0001863,2]
[368630042,1751251864747,-205.25,0.0001863,2]
[368630043,1751251864756,-490.0,0.0001863,2]
[368630044,1751251864766,-593.85,0.0001863,2]
[368630045,1751251864775,-490.0,0.0001863,2]
[368630046,1751251864784,-490.0,0.0001863,2]
[368630047,1751251864794,-490.0,0.0001863,2]
[368630048,1751251864803,-490.0,0.0001863,2]
[368630049,1751251864813,-490.0,0.0001863,2]
[368630050,1751251864822,-1926.03,0.0001863,2]
[368630051,1751251864832,-650.17,0.0001863,2]
[368630052,1751251864841,-1708.59,0.0001863,2]
[368630053,1751251864850,-490.0,0.0001863,2]
[368630054,1751251864860,-2778.06,0.0001863,2]
[368630055,1751251864869,-490.0,0.0001863,2]
[368630056,1751251864879,-490.0,0.0001863,2]
[368630057,1751251864888,-490.0,0.0001863,2]
[368630058,1751251864897,-490.0,0.0001863,2]
[368630059,1751251864907,-490.0,0.0001863,2]
[368630060,1751251864917,-490.0,0.0001863,2]
[368630061,1751251864926,-490.0,0.0001863,2]
[368630062,1751251864936,-940.0,0.0001863,2]
[368630063,1751251864946,-490.0,0.0001863,2]
[368630064,1751251864956,-985.11,0.0001863,2]
[368630065,1751251864966,-490.0,0.0001863,2]
[368630066,1751251864975,-490.0,0.0001863,2]
[368630067,1751251864985,-747.71,0.0001863,2]
[368630068,1751251864995,-490.0,0.0001863,2]
[368630069,1751251865004,-490.0,0.0001863,2]
[368630070,1751251865014,-1471.68,0.0001863,2]
[368630071,1751251865023,-1060.78,0.0001863,2]
[368630072,1751251865032,-1889.68,0.0001863,2]
[368630073,1751251865042,-490.0,0.0001863,2]
[368630074,1751251865051,-490.0,0.0001863,2]
[368630075,1751251865061,-507.02307622,0.0001863,2]
[368630076,1751251865070,-490.0,0.0001863,2]
[368630077,1751251865079,-554.61,0.0001863,2]
[368630078,1751251865088,-511.88,0.0001863,2]
[368630079,1751251865097,-1445.67,0.0001863,2]
[368630080,1751251865106,-519.99,0.0001863,2]
[368630081,1751251865117,-972.74,0.0001863,2]
[368630082,1751251865127,-960.53,0.0001863,2]
[368630083,1751251865137,-596.76,0.0001863,2]
[368630084,1751251865146,-490.0,0.0001863,2]
[368630085,1751251865156,-2155.68,0.0001863,2]
[368630086,1751251865165,-490.0,0.0001863,2]
[368630087,1751251865175,-490.0,0.0001863,2]
[368630088,1751251865184,-586.03,0.0001863,2]
[368630089,1751251865194,-490.0,0.0001863,2]
[368630090,1751251865203,-351.40892522,0.0001863,2]
[368630091,1751251865213,-1717.71,0.0001863,2]
[368630092,1751251865223,-490.0,0.0001863,2]
[368630093,1751251865232,-1841.2,0.0001863,2]
[368630094,1751251865241,-885.77,0.0001863,2]
[368630095,1751251865250,-2059.3,0.0001863,2]
[368630096,1751251865259,-490.0,0.0001863,2]
[368630097,1751251865268,-490.0,0.0001863,2]
[368630098,1751251865277,-507.8630106,0.0001863,2]
[368630099,1751251865286,-490.0,0.0001863,2]
[368630100,1751251865295,-490.0,0.0001863,2]
[368630101,1751251865305,-490.0,0.0001863,2]
[368630102,1751251865314,-2881.33,0.0001863,2]
[368630103,1751251865323,-1531.76,0.0001863,2]
[368630104,1751251865332,-490.0,0.0001863,2]
[368630105,1751251865342,-2070.57,0.0001863,2]
[368630106,1751251865351,-490.0,0.0001863,2]
[368630107,1751251865360,-490.0,0.0001863,2]
[368630108,1751251865370,-2375.96,0.0001863,2]
[368630109,1751251865380,-490.0,0.0001863,2]
[368630110,1751251865389,-490.0,0.0001863,2]
[368630111,1751251865398,-490.0,0.0001863,2]
[368630112,1751251865407,-490.0,0.0001863,2]
[368630113,1751251865417,-1151.24,0.0001863,2]
[368630114,1751251865426,-490.0,0.0001863,2]
[368630115,1751251865435,-2272.0,0.0001863,2]
[368630116,1751251865447,-1124.75,0.0001863,2]
[368630117,1751251865456,-1093.27,0.0001863,2]
[368630118,1751251865466,-490.0,0.0001863,2]
[368630119,1751251865475,-617.76,0.0001863,2]
[368630120,1751251865485,-1202.45,0.0001863,2]
[368630121,1751251865495,-490.0,0.0001863,2]
[368630122,1751251865503,-1011.98,0.0001863,2]
[368630123,1751251865513,-200318.67,0.0001863,2]
[368630124,1751251865524,-1292.09,0.0001863,2]
[368630125,1751251865534,-903.59,0.0001863,2]
[368630126,1751251865543,-2593.58,0.0001863,2]
[368630127,1751251865552,-8491.88,0.0001863,2]
[368630128,1751251865562,-490.0,0.0001863,2]
[368630129,1751251865571,-490.0,0.0001863,2]
[368630130,1751251865581,-490.0,0.0001863,2]
[368630131,1751251865590,-490.0,0.0001863,2]
[368630132,1751251865599,-2865.37,0.0001863,2]
[368630133,1751251865609,-490.0,0.0001863,2]
[368630134,1751251865618,-490.0,0.0001863,2]
[368630135,1751251865627,-1229.7,0.0001863,2]
[368630136,1751251865636,-490.0,0.0001863,2]
[368630137,1751251865645,-2403.06,0.0001863,2]
[368630138,1751251865655,-490.0,0.0001863,2]
[368630139,1751251865666,-490.0,0.0001863,2]
[368630140,1751251865675,-490.0,0.0001863,2]
[368630141,1751251865684,-490.0,0.0001863,2]
[368630142,1751251865693,-3607.68,0.0001863,2]
[368630143,1751251865703,-490.0,0.0001863,2]
[368630144,1751251865712,-710.44,0.0001863,2]
[368630145,1751251865721,-3116.89,0.0001863,2]
[368630146,1751251865731,-1351.45,0.0001863,2]
[368630147,1751251865740,-490.0,0.0001863,2]
[368630148,1751251865750,-2430.73,0.0001863,2]
[368630149,1751251865759,-770.92,0.0001863,2]
[368630150,1751251865769,-4278.68,0.0001863,2]
[368630151,1751251865779,-490.0,0.0001863,2]
[368630152,1751251865789,-268.732985,0.0001863,2]
[368630153,1751251865799,-903.92,0.0001863,2]
[368630154,1751251865808,-268.732985,0.0001863,2]
[368630155,1751251865818,-490.0,0.0001863,2]
[368630156,1751251865827,-1309.58,0.0001863,2]
[368630157,1751251865837,-490.0,0.0001863,2]
[368630158,1751251865847,-2820.62,0.0001863,2]
[368630159,1751251865857,-490.0,0.0001863,2]
[368630160,1751251865867,-490.0,0.0001863,2]
[368630161,1751251865876,-765.87,0.0001863,2]
[368630162,1751251865886,-2624.38,0.0001863,2]
[368630163,1751251865896,-844.27,0.0001863,2]
[368630164,1751251865907,-490.0,0.0001863,2]
[368630165,1751251865917,-2800.0,0.000187,6]
[368630166,1751251865928,-500.0,0.000188,6]
[368630167,1751251865939,-644.49069178,0.00018803,2]
[368630168,1751251865949,-2365.9214588,0.00018803,2]
[368630169,1751251865958,-12741.86928663,0.00018804,2]
[368630170,1751251865968,-354.60938312,0.00018804,2]
[368630171,1751251865978,-5000.0,0.00018804,2]
[368630172,1751251865988,-200.0,0.00018816,2]
[368630173,1751251865997,-158.352726,0.00018835,2]
[368630174,1751251866008,-500.0,0.000189,6]
[368630175,1751251866018,-490.0,0.00018902,2]
[368630176,1751251866027,-633.91,0.00018902,2]
[368630177,1751251866037,-490.0,0.00018902,2]
[368630178,1751251866047,-490.0,0.00018902,2]
[368630179,1751251866057,-677.9,0.00018902,2]
[368630180,1751251866066,-490.0,0.00018902,2]
[368630181,1751251866076,-490.0,0.00018902,2]
[368630182,1751251866085,-490.0,0.00018902,2]
[368630183,1751251866095,-762.8,0.00018902,2]
[368630184,1751251866105,-490.0,0.00018902,2]
[368630185,1751251866114,-490.0,0.00018902,2]
[368630186,1751251866123,-490.0,0.00018902,2]
[368630187,1751251866133,-490.0,0.00018902,2]
[368630188,1751251866142,-753.01,0.00018902,2]
[368630189,1751251866152,-587.82600961,0.00018902,2]
[368630190,1751251866164,-490.0,0.00018902,2]
[368630191,1751251866174,-1214.46,0.00018902,2]
[368630192,1751251866184,-806.81,0.00018902,2]
[368630193,1751251866194,-529.16,0.00018902,2]
[368630194,1751251866203,-490.0,0.00018902,2]
[368630195,1751251866213,-770.62,0.00018902,2]
[368630196,1751251866223,-929.66,0.00018902,2]
[368630197,1751251866233,-490.0,0.00018902,2]
[368630198,1751251866243,-490.0,0.00018902,2]
[368630199,1751251866253,-1084.19,0.00018902,2]
[368630200,1751251866262,-516.18,0.00018902,2]
[368630201,1751251866272,-622.82026009,0.00018902,2]
[368630202,1751251866282,-490.0,0.00018902,2]
[368630203,1751251866292,-490.0,0.00018902,2]
[368630204,1751251866302,-1413.27,0.00018902,2]
[368630205,1751251866312,-622.17,0.00018902,2]
[368630206,1751251866322,-540.08,0.00018902,2]
[368630207,1751251866332,-490.0,0.00018902,2]
[368630208,1751251866342,-527.32154457,0.00018902,2]
[368630209,1751251866351,-490.0,0.00018902,2]
[368630210,1751251866361,-490.0,0.00018902,2]
[368630211,1751251866371,-496.34378822,0.00018902,2]
[368630212,1751251866381,-953.4,0.00018902,2]
[368630213,1751251866391,-1449.6,0.00018902,2]
[368630214,1751251866400,-742.28,0.00018902,2]
[368630215,1751251866411,-490.0,0.00018902,2]
[368630216,1751251866421,-558.14,0.00018902,2]
[368630217,1751251866431,-665.87,0.00018902,2]
[368630218,1751251866442,-490.0,0.00018902,2]
[368630219,1751251866452,-808.09,0.00018902,2]
[368630220,1751251866461,-1555.39,0.00018902,2]
[368630221,1751251866471,-1197.04,0.00018902,2]
[368630222,1751251866482,-490.0,0.00018902,2]
[368630223,1751251866492,-712.43,0.00018902,2]
[368630224,1751251866502,-490.0,0.00018902,2]
[368630225,1751251866512,-490.0,0.00018902,2]
[368630226,1751251866521,-1005.51,0.00018902,2]
[368630227,1751251866531,-603.87,0.00018902,2]
[368630228,1751251866542,-490.0,0.00018902,2]
[368630229,1751251866552,-490.0,0.00018902,2]
[368630230,1751251866561,-490.0,0.00018902,2]
[368630231,1751251866571,-490.0,0.00018902,2]
[368630232,1751251866581,-595.18,0.00018902,2]
[368630233,1751251866591,-1150.89,0.00018902,2]
[368630234,1751251866600,-769.02,0.00018902,2]
[368630235,1751251866610,-490.0,0.00018902,2]
[368630236,1751251866620,-505.93677542,0.00018902,2]
[368630237,1751251866631,-1182.38,0.00018902,2]
[368630238,1751251866641,-490.0,0.00018902,2]
[368630239,1751251866652,-490.0,0.00018902,2]
[368630240,1751251866663,-492.78409003,0.00018902,2]
[368630241,1751251866674,-1039.16,0.00018902,2]
[368630242,1751251866684,-668.98,0.00018902,2]
[368630243,1751251866696,-490.0,0.00018902,2]
[368630244,1751251866706,-1133.4,0.00018902,2]
[368630245,1751251866718,-490.0,0.00018902,2]
[368630246,1751251866728,-490.0,0.00018902,2]
[368630247,1751251866738,-490.0,0.00018902,2]
[368630248,1751251866748,-2704.6,0.00018902,2]
[368630249,1751251866759,-684.77,0.00018902,2]
[368630250,1751251866770,-1629.48,0.00018902,2]
[368630251,1751251866780,-490.0,0.00018902,2]
[368630252,1751251866790,-490.0,0.00018902,2]
[368630253,1751251866800,-490.0,0.00018902,2]
[368630254,1751251866812,-498.29917239,0.00018902,2]
[368630255,1751251866823,-491.48240594,0.00018902,2]
[368630256,1751251866833,-2625.87,0.00018902,2]
[368630257,1751251866844,-490.0,0.00018902,2]
[368630258,1751251866854,-536.5,0.00018902,2]
[368630259,1751251866864,-5845.11,0.00018902,2]
[368630260,1751251866874,-705.3,0.00018902,2]
[368630261,1751251866884,-490.0,0.00018902,2]
[368630262,1751251866894,-490.0,0.00018902,2]
[368630263,1751251866904,-441.22945313,0.00018902,2]
[368630264,1751251866914,-490.0,0.00018902,2]
[368630265,1751251866924,-490.0,0.00018902,2]
[368630266,1751251866934,-490.0,0.00018902,2]
[368630267,1751251866944,-490.0,0.00018902,2]
[368630268,1751251866954,-490.0,0.00018902,2]
[368630269,1751251866964,-490.0,0.00018902,2]
[368630270,1751251866974,-490.0,0.00018902,2]
[368630271,1751251866984,-1901.07,0.00018902,2]
[368630272,1751251866994,-1629.55,0.00018902,2]
[368630273,1751251867006,-549.85,0.00018902,2]
[368630274,1751251867017,-2484.8,0.00018902,2]
[368630275,1751251867027,-490.0,0.00018902,2]
[368630276,1751251867039,-490.0,0.00018902,2]
[368630277,1751251867049,-205.58,0.00018902,2]
[368630278,1751251867059,-660.81,0.00018902,2]
[368630279,1751251867069,-490.0,0.00018902,2]
[368630280,1751251867079,-2495.51,0.00018902,2]
[368630281,1751251867089,-3179.03,0.00018902,2]
[368630282,1751251867099,-490.0,0.00018902,2]
[368630283,1751251867109,-490.0,0.00018902,2]
[368630284,1751251867119,-490.0,0.00018902,2]
[368630285,1751251867129,-490.0,0.00018902,2]
[368630286,1751251867138,-490.0,0.00018902,2]
[368630287,1751251867148,-1130.48,0.00018902,2]
[368630288,1751251867159,-492.45,0.00018902,2]
[368630289,1751251867169,-2319.29,0.00018902,2]
[368630290,1751251867179,-1006.54,0.00018902,2]
[368630291,1751251867189,-2192.34,0.00018902,2]
[368630292,1751251867198,-490.0,0.00018902,2]
[368630293,1751251867208,-852.79,0.00018902,2]
[368630294,1751251867218,-657.55,0.00018902,2]
[368630295,1751251867227,-490.0,0.00018902,2]
[368630296,1751251867237,-490.0,0.00018902,2]
[368630297,1751251867247,-912.83,0.00018902,2]
[368630298,1751251867256,-490.0,0.00018902,2]
[368630299,1751251867267,-493.51902528,0.00018902,2]
[368630300,1751251867276,-490.0,0.00018902,2]
[368630301,1751251867286,-1158.24,0.00018902,2]
[368630302,1751251867295,-10854.25,0.00018902,2]
[368630303,1751251867305,-490.0,0.00018902,2]
[368630304,1751251867315,-614.78,0.00018902,2]
[368630305,1751251867325,-869.07,0.00018902,2]
[368630306,1751251867335,-490.0,0.00018902,2]
[368630307,1751251867344,-490.0,0.00018902,2]
[368630308,1751251867354,-490.0,0.00018902,2]
[368630309,1751251867364,-1345.4,0.00018902,2]
[368630310,1751251867374,-2819.07,0.00018902,2]
[368630311,1751251867384,-522.86,0.00018902,2]
[368630312,1751251867393,-2580.5,0.00018902,2]
[368630313,1751251867403,-490.0,0.00018902,2]
[368630314,1751251867413,-365.01988036,0.00018902,2]
[368630315,1751251867423,-6040.76,0.00018902,2]
[368630316,1751251867434,-1131.28,0.00018902,2]
[368630317,1751251867446,-490.0,0.00018902,2]
[368630318,1751251867456,-490.0,0.00018902,2]
[368630319,1751251867466,-490.0,0.00018902,2]
[368630320,1751251867476,-220.68,0.00018902,2]
[368630321,1751251867486,-547.63,0.00018903,2]
[368630322,1751251867496,-490.0,0.00018903,2]
[368630323,1751251867505,-490.0,0.00018903,2]
[368630324,1751251867515,-490.0,0.00018903,2]
[368630325,1751251867525,-634.88,0.00018903,2]
[368630326,1751251867534,-762.92,0.00018903,2]
[368630327,1751251867544,-490.0,0.00018903,2]
[368630328,1751251867554,-562.56,0.00018903,2]
[368630329,1751251867563,-490.0,0.00018903,2]
[368630330,1751251867573,-606.17,0.00018903,2]
[368630331,1751251867582,-490.0,0.00018903,2]
[368630332,1751251867591,-490.0,0.00018903,2]
[368630333,1751251867600,-490.0,0.00018903,2]
[368630334,1751251867610,-490.0,0.00018903,2]
[368630335,1751251867620,-490.0,0.00018903,2]
[368630336,1751251867630,-490.0,0.00018903,2]
[368630337,1751251867639,-490.0,0.00018903,2]
[368630338,1751251867650,-1073.89,0.00018903,2]
[368630339,1751251867660,-490.0,0.00018903,2]
[368630340,1751251867670,-749.2,0.00018903,2]
[368630341,1751251867679,-899.42,0.00018903,2]
[368630342,1751251867690,-490.0,0.00018903,2]
[368630343,1751251867699,-490.0,0.00018903,2]
[368630344,1751251867709,-1000.0,0.00018903,2]
[368630345,1751251867719,-643.14,0.00018903,2]
[368630346,1751251867729,-490.0,0.00018903,2]
[368630347,1751251867740,-328.59574349,0.00018903,2]
[368630348,1751251867750,-791.81,0.00018903,2]
[368630349,1751251867760,-493.75473426,0.00018903,2]
[368630350,1751251867770,-523.46,0.00018903,2]
[368630351,1751251867780,-490.0,0.00018903,2]
[368630352,1751251867790,-490.0,0.00018903,2]
[368630353,1751251867800,-2366.28,0.00018903,2]
[368630354,1751251867810,-490.0,0.00018903,2]
[368630355,1751251867820,-490.0,0.00018903,2]
[368630356,1751251867831,-3147.78,0.00018903,2]
[368630357,1751251867841,-490.0,0.00018903,2]
[368630358,1751251867851,-490.0,0.00018903,2]
[368630359,1751251867861,-815.6,0.00018903,2]
[368630360,1751251867871,-688.36,0.00018903,2]
[368630361,1751251867881,-2650.12,0.00018903,2]
[368630362,1751251867891,-490.0,0.00018903,2]
[368630363,1751251867901,-490.0,0.00018903,2]
[368630364,1751251867911,-734.05,0.00018903,2]
[368630365,1751251867922,-490.0,0.00018903,2]
[368630366,1751251867932,-901.31,0.00018903,2]
[368630367,1751251867942,-902.0,0.00018903,2]
[368630368,1751251867952,-490.0,0.00018903,2]
[368630369,1751251867962,-1948.88,0.00018903,2]
[368630370,1751251867972,-490.0,0.00018903,2]
[368630371,1751251867981,-490.0,0.00018903,2]
[368630372,1751251867991,-1508.0,0.00018903,2]
[368630373,1751251868001,-516.67286551,0.00018903,2]
[368630374,1751251868011,-281.61817041,0.00018903,2]
[368630375,1751251868021,-995.76,0.00018903,2]
[368630376,1751251868031,-490.0,0.00018903,2]
[368630377,1751251868041,-2266.37,0.00018903,2]
[368630378,1751251868051,-490.0,0.00018903,2]
[368630379,1751251868061,-1406.41,0.00018903,2]
[368630380,1751251868071,-1494.4,0.00018903,2]
[368630381,1751251868080,-2746.7,0.00018903,2]
[368630382,1751251868090,-182.86935129,0.00018903,2]
[368630383,1751251868100,-1033.76,0.00018903,2]
[368630384,1751251868425,-1220.36,0.00018903,2]
[368630385,1751251868435,-1878.62,0.00018903,2]
[368630386,1751251868447,-490.0,0.00018903,2]
[368630387,1751251868456,-1702.73,0.00018903,2]
[368630388,1751251868465,-1396.61,0.00018903,2]
[368630389,1751251868475,-490.0,0.00018903,2]
[368630390,1751251868484,-886.27,0.00018903,2]
[368630391,1751251868493,-490.0,0.00018903,2]
[368630392,1751251868503,-490.0,0.00018903,2]
[368630393,1751251868512,-1326.6,0.00018903,2]
[368630394,1751251868525,-2158.06,0.00018903,2]
[368630395,1751251868534,-868.85,0.00018903,2]
[368630396,1751251868544,-490.0,0.00018903,2]
[368630397,1751251868555,-490.0,0.00018903,2]
[368630398,1751251868564,-2914.25,0.00018903,2]
[368630399,1751251868574,-490.0,0.00018903,2]
[368630400,1751251868583,-490.0,0.00018903,2]
[368630401,1751251868593,-1624.74,0.00018903,2]
[368630402,1751251868603,-1650.52,0.00018903,2]
[368630403,1751251868612,-235.21713313,0.00018903,2]
[368630404,1751251868621,-1274.53,0.00018903,2]
[368630405,1751251868631,-490.0,0.00018903,2]
[368630406,1751251868640,-490.0,0.00018903,2]
[368630407,1751251868649,-1204.89,0.00018903,2]
[368630408,1751251868659,-345.125094,0.00018903,2]
[368630409,1751251868668,-345.125094,0.00018903,2]
[368630410,1751251868678,-944.67,0.00018903,2]
[368630411,1751251868688,-1242.11,0.00018903,2]
[368630412,1751251868697,-345.125094,0.00018903,2]
[368630413,1751251868706,-345.125094,0.00018903,2]
[368630414,1751251868716,-1160.88,0.00018903,2]
[368630415,1751251868725,-493.83422867,0.00018903,2]
[368630416,1751251868735,-2826.78,0.00018903,2]
[368630417,1751251868745,-3589.26,0.00018903,2]
[368630418,1751251868754,-1018.36,0.00018903,2]
[368630419,1751251868763,-490.0,0.00018903,2]
[368630420,1751251868772,-1059.15,0.00018903,2]
[368630421,1751251868782,-716.48,0.00018903,2]
[368630422,1751251868791,-1605.32,0.00018903,2]
[368630423,1751251868801,-490.0,0.00018903,2]
[368630424,1751251868811,-549.29084,0.00018903,2]
[368630425,1751251868821,-549.29084,0.00018903,2]
[368630426,1751251868833,-549.29084,0.00018903,2]
[368630427,1751251868842,-1981.18,0.00018903,2]
[368630428,1751251868852,-490.0,0.00018903,2]
[368630429,1751251868861,-549.29084,0.00018903,2]
[368630430,1751251868871,-549.29084,0.00018903,2]
[368630431,1751251868880,-549.29084,0.00018903,2]
[368630432,1751251868889,-1139.1,0.00018903,2]
[368630433,1751251868898,-2342.218684,0.00018903,2]
[368630434,1751251868908,-2342.218684,0.00018903,2]
[368630435,1751251868917,-490.0,0.00018903,2]
[368630436,1751251868926,-151.0,0.00018903,2]
[368630437,1751251868936,-151.0,0.00018903,2]
[368630438,1751251868945,-2342.218684,0.00018903,2]
[368630439,1751251868954,-2342.218684,0.00018903,2]
[368630440,1751251868964,-151.0,0.00018903,2]
[368630441,1751251868973,-151.0,0.00018903,2]
[368630442,1751251868983,-1237.49,0.00018903,2]
[368630443,1751251868992,-1810.15,0.00018903,2]
[368630444,1751251869002,-490.0,0.00018903,2]
[368630445,1751251869012,-490.0,0.00018903,2]
[368630446,1751251869021,-151.0,0.00018903,2]
[368630447,1751251869030,-151.0,0.00018903,2]
[368630448,1751251869040,-151.402336,0.00018903,2]
[368630449,1751251869049,-1654.41,0.00018903,2]
[368630450,1751251869058,-490.0,0.00018903,2]
[368630451,1751251869067,-2460.95,0.00018903,2]
[368630452,1751251869077,-490.0,0.00018903,2]
[368630453,1751251869087,-490.0,0.00018903,2]
[368630454,1751251869097,-490.0,0.00018903,2]
[368630455,1751251869107,-667.28,0.00018903,2]
[368630456,1751251869117,-490.0,0.00018903,2]
[368630457,1751251869126,-1149.23,0.00018903,2]
[368630458,1751251869136,-1704.96,0.00018903,2]
[368630459,1751251869145,-211.34,0.00018903,2]
[368630460,1751251869155,-2522.64,0.00018903,2]
[368630461,1751251869164,-7416.01,0.00018903,2]
[368630462,1751251869174,-151.0,0.00018903,2]
[368630463,1751251869183,-151.0,0.00018903,2]
[368630464,1751251869193,-389.33220379,0.00018903,2]
[368630465,1751251869202,-490.0,0.00018903,2]
[368630466,1751251869211,-490.0,0.00018903,2]
[368630467,1751251869220,-2606.44,0.00018903,2]
[368630468,1751251869230,-413.22906163,0.00018903,2]
[368630469,1751251869239,-1308.89,0.00018903,2]
[368630470,1751251869249,-490.0,0.00018903,2]
[368630471,1751251869258,-490.0,0.00018903,2]
[368630472,1751251869267,-711.96,0.00018903,2]
[368630473,1751251869277,-490.0,0.00018903,2]
[368630474,1751251869286,-5060.27,0.00018903,2]
[368630475,1751251869295,-2067.81,0.00018903,2]
[368630476,1751251869304,-2813.59,0.00018903,2]
[368630477,1751251869313,-1130.82,0.00018903,2]
[368630478,1751251869322,-151.0,0.00018903,2]
[368630479,1751251869332,-153.169077,0.00018903,2]
[368630480,1751251869342,-3055.29,0.00018903,2]
[368630481,1751251869351,-2054.27,0.00018903,2]
[368630482,1751251869360,-490.0,0.00018903,2]
[368630483,1751251869369,-1626.93,0.00018903,2]
[368630484,1751251869378,-1369.72,0.00018903,2]
[368630485,1751251869388,-490.0,0.00018903,2]
[368630486,1751251869398,-692.55,0.00018903,2]
[368630487,1751251869409,-152.446064,0.00018903,2]
[368630488,1751251869418,-5845.84,0.00018903,2]
[368630489,1751251869428,-490.0,0.00018903,2]
[368630490,1751251869439,-490.0,0.00018903,2]
[368630491,1751251869449,-1580.3,0.00018903,2]
[368630492,1751251869458,-2662.69,0.00018903,2]
[368630493,1751251869467,-1102.83,0.00018903,2]
[368630494,1751251869478,-5692.2,0.00018903,2]
[368630495,1751251869487,-490.0,0.00018903,2]
[368630496,1751251869496,-153.919938,0.00018903,2]
[368630497,1751251869506,-4087.74,0.00018903,2]
[368630498,1751251869516,-490.0,0.00018903,2]
[368630499,1751251869526,-490.0,0.00018903,2]
[368630500,1751251869535,-490.0,0.00018903,2]
[368630501,1751251869544,-2887.47,0.00018903,2]
[368630502,1751251869553,-5391.73,0.00018903,2]
[368630503,1751251869563,-490.0,0.00018903,2]
[368630504,1751251869572,-1111.8,0.00018903,2]
[368630505,1751251869581,-2604.06,0.00018903,2]
[368630506,1751251869590,-490.0,0.00018903,2]
[368630507,1751251869601,-1850.86,0.00018903,2]
[368630508,1751251869610,-2633.68,0.00018903,2]
[368630509,1751251869620,-5083.48314,0.00018903,2]
[368630510,1751251869629,-490.0,0.00018903,2]
[368630511,1751251869639,-1919.9,0.00018903,2]
[368630512,1751251869648,-302.55,0.00018903,2]
[368630513,1751251869658,-424.6605098,0.00018903,2]
[368630514,1751251869668,-490.0,0.00018903,2]
[368630515,1751251869677,-3038.95,0.00018903,2]
[368630516,1751251869686,-2227.63,0.00018903,2]
[368630517,1751251869696,-3242.21,0.00018903,2]
[368630518,1751251869706,-490.0,0.00018903,2]
[368630519,1751251869717,-1415.06,0.00018903,2]
[368630520,1751251869728,-5999.62,0.00018903,2]
[368630521,1751251869739,-151.0,0.00018903,2]
[368630522,1751251869749,-151.0,0.00018903,2]
[368630523,1751251869759,-490.0,0.00018903,2]
[368630524,1751251869768,-2724.35,0.00018903,2]
[368630525,1751251869778,-490.0,0.00018903,2]
[368630526,1751251869787,-5254.83619,0.00018903,2]